fUSD/lending_fUSD_20260418
["ID","MTS","AMOUNT","RATE_DAILY","PERIOD"]
[420718529,1776491457681,5370.3,0.00043,120]
[420718532,1776491759127,255.38153373,7.563e-05,30]
[420718537,1776492072846,613.59487911,7.552e-05,30]
[420718538,1776492073493,613.59487911,7.552e-05,30]
[420718539,1776492074163,613.59487911,7.561e-05,30]
[420718540,1776492075332,613.59487911,7.562e-05,30]
[420718543,1776492322513,-1753.231,7.412e-05,2]
[420718544,1776492322537,-190.097,7.412e-05,2]
[420718545,1776492322559,-247.0,7.412e-05,2]
[420718546,1776492322581,-200.0,7.453e-05,2]
[420718547,1776492322606,-164.0,7.551e-05,2]
[420718548,1776492322631,-300.0,7.552e-05,2]
[420718549,1776492322653,-1419.96892974,7.552e-05,2]
[420718550,1776492322675,-5725.70307026,7.553e-05,2]
[420718551,1776492323629,-10000.0,7.553e-05,2]
[420718552,1776492323978,-10000.0,7.553e-05,2]
[420718553,1776492324372,-10000.0,7.553e-05,2]
[420718554,1776492324826,-4413.39682985,7.553e-05,2]
[420718555,1776492324849,-199.00330526,7.553e-05,2]
[420718556,1776492324870,-150.0,7.561e-05,2]
[420718557,1776492324891,-557.27,7.562e-05,2]
[420718558,1776492324914,-254.62313782,7.562e-05,2]
[420718559,1776492324935,-500.0,7.562e-05,2]
[420718560,1776492324956,-500.0,7.562e-05,2]
[420718561,1776492324978,-500.0,7.562e-05,2]
[420718562,1776492325002,-500.0,7.562e-05,2]
[420718563,1776492325024,-509.56841712,7.562e-05,2]
[420718564,1776492325050,-500.0,7.562e-05,2]
[420718565,1776492325077,-500.0,7.562e-05,2]
[420718566,1776492325102,-500.0,7.562e-05,2]
[420718567,1776492325127,-416.13830995,7.562e-05,2]
[420718568,1776492325270,-83.86169005,7.562e-05,2]
[420718569,1776492325297,-500.0,7.562e-05,2]
[420718570,1776492325323,-500.0,7.562e-05,2]
[420718571,1776492325349,-450.0,7.562e-05,2]
[420718572,1776492325374,-500.0,7.562e-05,2]
[420718573,1776492325400,-500.0,7.562e-05,2]
[420718574,1776492325426,-500.0,7.562e-05,2]
[420718575,1776492325452,-500.0,7.562e-05,2]
[420718576,1776492325477,-500.0,7.562e-05,2]
[420718577,1776492325504,-500.0,7.562e-05,2]
[420718578,1776492325530,-500.0,7.562e-05,2]
[420718579,1776492325556,-500.0,7.562e-05,2]
[420718580,1776492325582,-500.0,7.562e-05,2]
[420718581,1776492325608,-539.80358517,7.562e-05,2]
[420718582,1776492325629,-250.0,7.562e-05,2]
[420718583,1776492325652,-3176.33472478,7.563e-05,2]
[420718584,1776492325706,-10000.0,7.563e-05,2]
[420718585,1776492325911,-10000.0,7.563e-05,2]
[420718586,1776492326396,-10000.0,7.563e-05,2]
[420718587,1776492328579,-10000.0,7.563e-05,2]
[420718588,1776492328615,-10000.0,7.563e-05,2]
[420718589,1776492328655,-10000.0,7.563e-05,2]
[420718590,1776492329289,-10000.0,7.563e-05,2]
[420718591,1776492329651,-10000.0,7.563e-05,2]
[420718592,1776492330075,-10000.0,7.563e-05,2]
[420718593,1776492330491,-10000.0,7.563e-05,2]
[420718594,1776492330946,-10000.0,7.563e-05,2]
[420718595,1776492331353,-10000.0,7.563e-05,2]
[420718596,1776492331744,-10000.0,7.563e-05,2]
[420718597,1776492332245,-10000.0,7.563e-05,2]
[420718598,1776492332336,-10000.0,7.563e-05,2]
[420718599,1776492332614,-10000.0,7.563e-05,2]
[420718600,1776492333118,-10000.0,7.563e-05,2]
[420718601,1776492333572,-10000.0,7.563e-05,2]
[420718602,1776492334015,-10000.0,7.563e-05,2]
[420718603,1776492334414,-10000.0,7.563e-05,2]
[420718604,1776492334815,-10000.0,7.563e-05,2]
[420718605,1776492335251,-10000.0,7.563e-05,2]
[420718606,1776492335633,-10000.0,7.563e-05,2]
[420718607,1776492336087,-10000.0,7.563e-05,2]
[420718608,1776492336452,-10000.0,7.563e-05,2]
[420718609,1776492336819,-10000.0,7.563e-05,2]
[420718610,1776492337282,-10000.0,7.563e-05,2]
[420718611,1776492337634,-10000.0,7.563e-05,2]
[420718612,1776492338053,-10000.0,7.563e-05,2]
[420718613,1776492338492,-10000.0,7.563e-05,2]
[420718614,1776492340288,-10000.0,7.563e-05,2]
[420718618,1776492631621,-248.0,7.463e-05,2]
[420718619,1776492631637,-113.04264806,7.463e-05,2]
[420718620,1776492631736,-280.63250004,7.463e-05,2]
[420718621,1776492631841,-106.3248519,7.463e-05,2]
[420718622,1776492631853,-702.06736685,7.552e-05,2]
[420718623,1776492631864,-300.0,7.561e-05,2]
[420718624,1776492631890,-300.0,7.561e-05,2]
[420718625,1776492631902,-1200.0,7.561e-05,2]
[420718626,1776492631913,-300.0,7.561e-05,2]
[420718627,1776492631924,-250.0,7.562e-05,2]
[420718628,1776492631955,-500.0,7.562e-05,2]
[420718629,1776492631966,-500.0,7.562e-05,2]
[420718630,1776492631978,-500.0,7.562e-05,2]
[420718631,1776492631990,-456.69789198,7.562e-05,2]
[420718632,1776492632001,-500.0,7.562e-05,2]
[420718633,1776492632015,-500.0,7.562e-05,2]
[420718634,1776492632031,-500.0,7.562e-05,2]
[420718635,1776492632049,-500.0,7.562e-05,2]
[420718636,1776492632063,-500.0,7.562e-05,2]
[420718637,1776492632074,-500.0,7.562e-05,2]
[420718638,1776492632086,-410.06567804,7.562e-05,2]
[420718639,1776492632097,-500.0,7.562e-05,2]
[420718640,1776492632109,-178.23619647,7.562e-05,2]
[420718641,1776492632122,-313.41770673,7.563e-05,2]
[420718642,1776492632135,-275.0,7.565e-05,7]
[420718643,1776492632148,-200.0,7.6e-05,2]
[420718644,1776492632161,-200.0,7.6e-05,2]
[420718645,1776492632172,-13905.16,7.724e-05,2]
[420718646,1776492632186,-13058.08,7.804e-05,2]
[420718647,1776492632198,-150.99,7.804e-05,2]
[420718648,1776492632210,-500.0,7.835e-05,2]
[420718649,1776492632220,-200.0,8e-05,2]
[420718650,1776492632232,-447.46616155,8.219e-05,2]
[420718651,1776492632245,-500.0,8.219e-05,2]
[420718652,1776492632256,-500.0,8.219e-05,2]
[420718653,1776492632269,-313.22631309,8.219e-05,2]
[420718654,1776492632280,-161.1,8.219e-05,2]
[420718655,1776492632295,-2000.0,8.219e-05,2]
[420718656,1776492632308,-1680.0,8.317e-05,2]
[420718657,1776492632321,-420.0,8.317e-05,2]
[420718658,1776492632333,-250.0,8.318e-05,2]
[420718659,1776492632347,-151.0,8.432e-05,2]
[420718660,1776492632357,-150.0,8.612e-05,2]
[420718661,1776492632369,-500.0,8.613e-05,5]
[420718662,1776492632381,-500.0,8.613e-05,5]
[420718663,1776492632391,-214.01544497,8.613e-05,5]
[420718664,1776492632402,-161.04571603,8.613e-05,5]
[420718665,1776492632414,-500.0,8.613e-05,5]
[420718666,1776492632425,-500.0,8.613e-05,5]
[420718667,1776492632436,-500.0,8.613e-05,5]
[420718668,1776492632457,-500.0,8.613e-05,5]
[420718670,1776492632469,-500.0,8.613e-05,5]
[420718672,1776492632481,-500.0,8.613e-05,5]
[420718674,1776492632492,-500.0,8.613e-05,5]
[420718676,1776492632504,-500.0,8.613e-05,5]
[420718678,1776492632516,-500.0,8.613e-05,5]
[420718680,1776492632527,-500.0,8.613e-05,5]
[420718682,1776492632538,-500.0,8.613e-05,5]
[420718684,1776492632549,-500.0,8.613e-05,5]
[420718686,1776492632572,-500.0,8.613e-05,5]
[420718688,1776492632583,-500.0,8.613e-05,5]
[420718690,1776492632594,-627.81095979,8.613e-05,5]
[420718692,1776492632608,-500.0,8.613e-05,5]
[420718694,1776492632621,-500.0,8.613e-05,5]
[420718714,1776492633007,-500.0,8.613e-05,5]
[420718715,1776492633038,-500.0,8.613e-05,5]
[420718716,1776492633049,-500.0,8.613e-05,5]
[420718717,1776492633064,-527.0,8.613e-05,5]
[420718718,1776492633076,-500.0,8.613e-05,5]
[420718719,1776492633087,-527.0,8.613e-05,5]
[420718720,1776492633097,-500.0,8.613e-05,5]
[420718721,1776492633108,-527.0,8.613e-05,5]
[420718722,1776492633119,-500.0,8.613e-05,5]
[420718723,1776492633131,-527.0,8.613e-05,5]
[420718724,1776492633141,-500.0,8.613e-05,5]
[420718725,1776492633152,-527.0,8.613e-05,5]
[420718726,1776492633164,-500.0,8.613e-05,5]
[420718727,1776492633175,-527.0,8.613e-05,5]
[420718728,1776492633188,-500.0,8.613e-05,5]
[420718729,1776492633201,-527.0,8.613e-05,5]
[420718730,1776492633215,-500.0,8.613e-05,5]
[420718731,1776492633232,-527.0,8.613e-05,5]
[420718732,1776492633246,-500.0,8.613e-05,5]
[420718733,1776492633257,-527.0,8.613e-05,5]
[420718734,1776492633269,-500.0,8.613e-05,5]
[420718735,1776492633280,-527.0,8.613e-05,5]
[420718736,1776492633291,-527.0,8.613e-05,5]
[420718737,1776492633303,-527.0,8.613e-05,5]
[420718738,1776492633322,-500.0,8.613e-05,5]
[420718739,1776492633334,-527.0,8.613e-05,5]
[420718740,1776492633346,-527.0,8.613e-05,5]
[420718741,1776492633362,-527.0,8.613e-05,5]
[420718742,1776492633374,-527.0,8.613e-05,5]
[420718743,1776492633394,-371.92860347,8.613e-05,5]
[420718744,1776492633409,-527.0,8.613e-05,5]
[420718745,1776492633421,-150.0,8.613e-05,2]
[420718746,1776492633432,-527.0,8.613e-05,5]
[420718747,1776492633454,-500.0,8.613e-05,5]
[420718748,1776492633466,-500.0,8.613e-05,5]
[420718749,1776492633478,-527.0,8.613e-05,5]
[420718750,1776492633491,-500.0,8.613e-05,5]
[420718751,1776492633505,-500.0,8.613e-05,5]
[420718752,1776492633532,-500.0,8.613e-05,5]
[420718753,1776492633543,-500.0,8.613e-05,5]
[420718754,1776492633557,-500.0,8.613e-05,5]
[420718755,1776492633569,-527.0,8.613e-05,5]
[420718756,1776492633584,-500.0,8.613e-05,5]
[420718757,1776492633602,-500.0,8.613e-05,5]
[420718758,1776492633617,-500.0,8.613e-05,5]
[420718759,1776492633635,-500.0,8.613e-05,5]
[420718760,1776492633649,-231.97231229,8.613e-05,5]
[420718761,1776492633663,-527.0,8.613e-05,5]
[420718762,1776492633677,-527.0,8.613e-05,5]
[420718763,1776492633694,-500.0,8.613e-05,5]
[420718764,1776492633707,-500.0,8.613e-05,5]
[420718765,1776492633719,-500.0,8.613e-05,5]
[420718766,1776492633733,-437.06057488,8.613e-05,5]
[420718767,1776492633747,-150.0,8.613e-05,2]
[420718768,1776492633759,-527.0,8.613e-05,5]
[420718769,1776492633772,-535.30955828,8.613e-05,5]
[420718770,1776492633798,-166.66,8.631e-05,2]
[420718771,1776492633809,-500.0,8.635e-05,2]
[420718772,1776492633820,-500.0,8.726e-05,2]
[420718773,1776492633833,-500.0,8.726e-05,2]
[420718774,1776492633855,-507.39844152,8.726e-05,2]
[420718775,1776492633867,-161.1,8.733e-05,2]
[420718776,1776492633879,-169.65,8.8e-05,2]
[420718777,1776492634105,-500.0,8.822e-05,2]
[420718778,1776492634116,-500.0,8.887e-05,5]
[420718779,1776492634127,-500.0,8.887e-05,5]
[420718780,1776492634140,-500.0,8.887e-05,5]
[420718781,1776492634152,-500.0,8.887e-05,5]
[420718782,1776492634163,-500.0,8.887e-05,5]
[420718783,1776492634176,-500.0,8.887e-05,5]
[420718784,1776492634189,-500.0,8.887e-05,5]
[420718785,1776492634201,-500.0,8.887e-05,5]
[420718786,1776492634221,-500.0,8.887e-05,5]
[420718787,1776492634233,-500.0,8.887e-05,5]
[420718788,1776492634244,-500.0,8.887e-05,5]
[420718789,1776492634255,-500.0,8.887e-05,5]
[420718790,1776492634267,-500.0,8.887e-05,5]
[420718791,1776492634279,-500.0,8.887e-05,5]
[420718792,1776492634292,-500.0,8.887e-05,5]
[420718793,1776492634309,-500.0,8.887e-05,5]
[420718794,1776492634322,-500.0,8.887e-05,5]
[420718795,1776492634334,-500.0,8.887e-05,5]
[420718796,1776492634347,-338.24470175,8.887e-05,5]
[420718797,1776492634362,-166.66,8.907e-05,2]
[420718798,1776492634376,-500.0,8.909e-05,2]
[420718799,1776492634389,-500.0,8.909e-05,2]
[420718800,1776492634404,-500.0,8.909e-05,2]
[420718801,1776492634417,-298.16572439,8.909e-05,2]
[420718802,1776492634428,-500.0,8.909e-05,2]
[420718803,1776492634440,-500.0,8.909e-05,2]
[420718804,1776492634454,-500.0,8.909e-05,2]
[420718805,1776492634467,-395.18165842,8.909e-05,2]
[420718806,1776492634479,-7833.17295337,9e-05,2]
[420718807,1776492634502,-502.14384265,9.013e-05,2]
[420718808,1776492634521,-500.0,9.013e-05,2]
[420718809,1776492634534,-49958.46676387,9.04e-05,2]
[420718810,1776492634546,-150.0,9.127e-05,2]
[420718811,1776492634559,-150.0,9.14e-05,5]
[420718812,1776492634573,-186.62666212,9.14e-05,5]
[420718813,1776492634584,-720.0,9.149e-05,2]
[420718814,1776492634597,-517.0,9.149e-05,2]
[420718815,1776492634613,-1333.0,9.161e-05,5]
[420718816,1776492634627,-1235.0,9.161e-05,5]
[420718817,1776492634641,-166.66,9.183e-05,2]
[420718818,1776492634652,-161.1,9.247e-05,2]
[420718819,1776492634664,-2000.0,9.247e-05,2]
[420718820,1776492634676,-150.0,9.291e-05,2]
[420718821,1776492634687,-1600.0,9.378e-05,2]
[420718822,1776492634699,-166.66,9.459e-05,2]
[420718823,1776492634710,-255.0,9.473e-05,2]
[420718824,1776492634723,-350.0,9.577e-05,2]
[420718825,1776492634734,-350.0,9.6e-05,2]
[420718826,1776492634747,-151.0,9.609e-05,2]
[420718827,1776492634760,-150.0,9.616e-05,2]
[420718828,1776492634771,-150.0,9.616e-05,2]
[420718829,1776492634783,-150.0,9.616e-05,2]
[420718830,1776492634795,-150.0,9.616e-05,2]
[420718831,1776492634806,-150.0,9.616e-05,2]
[420718832,1776492634817,-150.0,9.616e-05,2]
[420718833,1776492634829,-150.0,9.616e-05,2]
[420718834,1776492634839,-150.0,9.616e-05,2]
[420718835,1776492634851,-150.0,9.616e-05,2]
[420718836,1776492634862,-1382.09009037,9.689e-05,2]
[420718837,1776492634873,-166.66,9.735e-05,2]
[420718838,1776492634884,-161.1,9.76e-05,2]
[420718839,1776492634895,-205.0,9.8e-05,2]
[420718840,1776492634906,-150.0,9.874e-05,2]
[420718841,1776492634917,-621.39,0.0001,2]
[420718842,1776492634929,-167.0,0.0001,2]
[420718843,1776492634940,-2310.0,0.0001,2]
[420718844,1776492634957,-500.0,0.0001,3]
[420718845,1776492634968,-3628.0,0.0001,2]
[420718846,1776492634980,-2000.0,0.0001,2]
[420718847,1776492634992,-7294.33393327,0.00010058,2]
[420718848,1776492635005,-29516.06634398,0.00010058,2]
[420718849,1776492635016,-150.0,0.00010151,2]
[420718850,1776492635026,-200.0,0.0001017,3]
[420718851,1776492635038,-253.96697214,0.000102,2]
[420718852,1776492635049,-152.0,0.00010233,2]
[420718853,1776492635062,-151.0,0.00010233,2]
[420718854,1776492635073,-151.0,0.00010233,2]
[420718855,1776492635084,-151.0,0.00010233,2]
[420718856,1776492635096,-151.0,0.00010233,2]
[420718857,1776492635108,-151.0,0.00010233,2]
[420718858,1776492635119,-151.0,0.00010233,2]
[420718859,1776492635132,-151.0,0.00010233,2]
[420718860,1776492635144,-151.0,0.00010233,2]
[420718861,1776492635158,-151.0,0.00010233,2]
[420718862,1776492635170,-151.0,0.00010233,2]
[420718863,1776492635182,-151.0,0.00010233,2]
[420718864,1776492635195,-151.0,0.00010233,2]
[420718865,1776492635208,-151.0,0.00010233,2]
[420718866,1776492635220,-193.19904348,0.00010233,2]
[420718867,1776492635236,-161.1,0.00010274,2]
[420718868,1776492635248,-2000.0,0.00010274,2]
[420718869,1776492635262,-151.0,0.00010297,2]
[420718870,1776492635277,-151.0,0.00010297,2]
[420718871,1776492635292,-142778.59960768,0.000103,2]
[420718872,1776492635305,-1600.0,0.00010316,2]
[420718873,1776492635317,-9999.99,0.00010475,2]
[420718874,1776492635329,-24094.0638104,0.00010475,2]
[420718875,1776492635350,-5905.9261896,0.00010475,2]
[420718876,1776492635360,-1733.71,0.00010475,2]
[420718877,1776492635371,-469.3441119,0.000106,2]
[420718878,1776492635392,-307.0,0.000106,2]
[420718879,1776492635402,-150.0,0.00010685,2]
[420718880,1776492635414,-150.0,0.00010685,2]
[420718881,1776492635425,-150.0,0.00010685,2]
[420718882,1776492635436,-151.0,0.00010697,2]
[420718883,1776492635448,-250.0,0.00010697,2]
[420718884,1776492635459,-270.54499817,0.000107,2]
[420718885,1776492635469,-17118.27948736,0.000107,2]
[420718886,1776492635483,-123472.78485894,0.000107,2]
[420718887,1776492635498,-87839.37623523,0.000107,2]
[420718888,1776492635511,-363.22867442,0.000107,2]
[420718889,1776492635525,-2908.61379981,0.000107,2]
[420718890,1776492635552,-1195.0,0.000107,2]
[420718891,1776492635626,-342.18458118,0.000107,2]
[420718892,1776492635667,-3766.60401429,0.000107,2]
[420718897,1776492637704,-279.08034156,0.000107,2]
[420718931,1776492641112,-473.93335833,0.000107,2]
[420718932,1776492641769,-432.33533711,0.000107,2]
[420718933,1776492641785,-359.4103643,0.000107,2]
[420718934,1776492641805,-73994.69674433,0.000107,2]
[420718935,1776492641817,-42801.13114433,0.000107,2]
[420718936,1776492641828,-993.3784,0.000107,2]
[420718941,1776492642704,-67.1143864,0.00010326,7]
[420718947,1776492645592,-201.8856136,0.00010326,7]
[420718948,1776492645602,-269.0,0.00010439,7]
[420718949,1776492645612,-9634.56640217,0.000107,2]
[420718950,1776492645750,-4920.92873196,0.000107,2]
[420718964,1776493792044,201.14,7.174e-05,2]
[420718965,1776493831618,-249.0,7.504e-05,2]
[420718966,1776493831628,-38.06431718,7.504e-05,2]
[420718967,1776493831640,-894.93568282,7.504e-05,2]
[420718968,1776493831667,-538.15211487,7.504e-05,2]
[420718969,1776493831798,-7494.24512757,7.504e-05,2]
[420718970,1776493831810,-2856.17986528,7.504e-05,2]
[420718971,1776493831821,-39983.40633507,7.504e-05,2]
[420718972,1776493831890,-16795.89215721,7.504e-05,2]
[420718973,1776493831899,-1402.585,7.55e-05,2]
[420718974,1776493831909,-190.09879539,7.55e-05,2]
[420718975,1776493831919,-300.0,7.603e-05,2]
[420718976,1776493831928,-1200.0,7.603e-05,2]
[420718977,1776493831938,-150.0,7.603e-05,2]
[420718978,1776493831947,-255.0,7.603e-05,2]
[420718979,1776493831957,-2114.68494981,7.604e-05,2]
[420718980,1776493831970,-1203.78215019,7.604e-05,2]
[420718981,1776493831980,-1107.55459883,7.604e-05,2]
[420718983,1776493838079,-407.03100117,7.604e-05,2]
[420718984,1776493838089,-22241.4669,7.604e-05,2]
[420718985,1776493838099,-150.0,7.644e-05,2]
[420718986,1776493838110,-150.0,7.644e-05,2]
[420718987,1776493838119,-500.0,7.683e-05,2]
[420718988,1776493838130,-500.0,7.683e-05,2]
[420718989,1776493838140,-210.99979693,7.683e-05,2]
[420718990,1776493838150,-500.0,7.683e-05,2]
[420718991,1776493838160,-316.58612091,7.683e-05,2]
[420718992,1776493838170,-500.0,7.683e-05,2]
[420718993,1776493838181,-500.0,7.683e-05,2]
[420718994,1776493838192,-445.82,7.703e-05,2]
[420718995,1776493838201,-500.0,7.704e-05,2]
[420718996,1776493838212,-500.0,7.704e-05,2]
[420718997,1776493838221,-500.0,7.704e-05,2]
[420718998,1776493838230,-500.0,7.704e-05,2]
[420718999,1776493838240,-500.0,7.704e-05,2]
[420719000,1776493838249,-500.0,7.704e-05,2]
[420719001,1776493838259,-500.0,7.704e-05,2]
[420719002,1776493838268,-500.0,7.704e-05,2]
[420719003,1776493838278,-500.0,7.704e-05,2]
[420719004,1776493838287,-500.0,7.704e-05,2]
[420719005,1776493838297,-500.0,7.704e-05,2]
[420719006,1776493838307,-500.0,7.704e-05,2]
[420719007,1776493838316,-500.0,7.704e-05,2]
[420719008,1776493838327,-500.0,7.704e-05,2]
[420719009,1776493838336,-500.0,7.704e-05,2]
[420719010,1776493838346,-500.0,7.704e-05,2]
[420719011,1776493838356,-150.0,7.704e-05,2]
[420719012,1776493838365,-250.0,7.704e-05,2]
[420719013,1776493838375,-200.0,7.8e-05,2]
[420719014,1776493838385,-400.0,7.9e-05,2]
[420719015,1776493838395,-184.0,7.927e-05,2]
[420719016,1776493838404,-808.0,7.958e-05,2]
[420719017,1776493838414,-1215.0,7.974e-05,2]
[420719018,1776493838423,-445.82,7.977e-05,2]
[420719019,1776493838433,-700.0,8e-05,2]
[420719020,1776493838443,-244.0,8.035e-05,2]
[420719021,1776493838453,-476.0,8.086e-05,2]
[420719022,1776493838464,-1619.0,8.102e-05,2]
[420719023,1776493838474,-747.0,8.118e-05,2]
[420719024,1776493838483,-811.0,8.135e-05,2]
[420719025,1776493838495,-638.08,8.219e-05,2]
[420719026,1776493838505,-500.0,8.219e-05,2]
[420719027,1776493838514,-154.45,8.22e-05,2]
[420719028,1776493838524,-166.66,8.248e-05,2]
[420719029,1776493838535,-445.82,8.251e-05,2]
[420719030,1776493838544,-250.0,8.305e-05,2]
[420719031,1776493838555,-1434.0,8.33e-05,2]
[420719032,1776493838565,-795.0,8.346e-05,2]
[420719033,1776493838575,-1405.0,8.363e-05,2]
[420719034,1776493838584,-420.0,8.364e-05,2]
[420719035,1776493838593,-883.0,8.38e-05,2]
[420719036,1776493838602,-709.0,8.455e-05,2]
[420719037,1776493838612,-23521.96292532,8.513e-05,2]
[420719039,1776493838624,-42801.13114433,8.513e-05,2]
[420719041,1776493838636,-993.3784,8.513e-05,2]
[420719044,1776493838655,-4672.37343719,8.513e-05,2]
[420719071,1776493840018,-14563.74441144,8.513e-05,2]
[420719072,1776493840029,-32800.8,8.513e-05,2]
[420719073,1776493840042,-1407.52319047,8.513e-05,2]
[420719074,1776493840055,-318.57236343,8.513e-05,2]
[420719075,1776493840238,-2075.70576896,8.513e-05,2]
[420719076,1776493840250,-1810.91461116,8.513e-05,2]
[420719078,1776493840458,-56594.28040938,8.513e-05,2]
[420719091,1776493842826,-390738.66553784,8.513e-05,2]
[420719092,1776493842838,-10959.4757099,8.513e-05,2]
[420719100,1776493845894,-1471.53665363,7.604e-05,2]
[420719101,1776493846276,-1179.15927699,7.604e-05,2]
[420719102,1776493846327,-481.3395008,7.604e-05,2]
[420719103,1776493846339,-732.23943309,7.604e-05,2]
[420719113,1776494498483,-693.41384446,7.354e-05,2]
[420719115,1776494532547,158.11,0.000165,120]
[420719116,1776494541508,163.19,7.221e-05,2]
[420719117,1776494560633,-150.0,9.062e-05,30]
[420719118,1776494560721,-150.0,0.00010033,30]
[420719119,1776494560806,-150.0,0.00011004,30]
[420719120,1776494560895,-150.0,0.00011975,30]
[420719121,1776494560987,-150.0,0.00012945,30]
[420719122,1776494561086,-150.0,0.00013916,30]
[420719123,1776494561170,-613.59487911,0.00014263,30]
[420719124,1776494561261,-156.5,0.00014887,30]
[420719125,1776494561355,-178.86,0.00015858,30]
[420719126,1776494561444,-500.0,0.00016164,30]
[420719127,1776494561534,-500.0,0.00016438,30]
[420719128,1776494561626,-500.0,0.00016712,30]
[420719129,1776494561719,-201.22,0.00016829,30]
[420719130,1776494561813,-375.0,0.00016986,30]
[420719131,1776494561903,-223.58,0.000178,30]
[420719132,1776494561995,-150.7162452,0.00018714,35]
[420719133,1776494562085,-825.0,0.0002,30]
[420719134,1776494562171,-150.0,0.00021918,30]
[420719135,1776494562259,-150.0,0.00021918,30]
[420719136,1776494562345,-150.0,0.00021918,30]
[420719137,1776494562430,-175.0,0.00021918,30]
[420719138,1776494562517,-825.0,0.00022178,30]
[420719139,1776494562605,-825.0,0.00024356,60]
[420719140,1776494563043,-825.0,0.00026535,60]
[420719141,1776494563144,-367.25432171,0.0002737,30]
[420719142,1776494563227,-163.8,0.00027397,30]
[420719143,1776494563318,-825.0,0.00028713,60]
[420719144,1776494563403,-151.10186621,0.00029927,66]
[420719145,1776494563486,-163.8,0.00030137,30]
[420719146,1776494563570,-206.0,0.0003084,30]
[420719147,1776494563657,-825.0,0.00030891,60]
[420719148,1776494563742,-286.15135687,0.00031118,70]
[420719149,1776494563824,-284.0,0.00031977,30]
[420719150,1776494563910,-152.0,0.00031977,30]
[420719151,1776494563993,-263.0,0.0003198,30]
[420719152,1776494564075,-155.0,0.0003198,30]
[420719153,1776494564160,-157.0,0.0003198,30]
[420719154,1776494564245,-217.0,0.0003198,30]
[420719155,1776494564330,-305.0,0.0003198,30]
[420719156,1776494564412,-157.0,0.0003198,30]
[420719157,1776494564496,-159.0,0.0003198,30]
[420719158,1776494564584,-308.0,0.0003198,30]
[420719159,1776494564669,-206.0,0.0003286,30]
[420719160,1776494564753,-163.8,0.00032877,30]
[420719161,1776494564842,-482.64600676,0.00032886,75]
[420719162,1776494564927,-284.0,0.00032977,30]
[420719163,1776494565013,-152.0,0.00032977,30]
[420719164,1776494565097,-263.0,0.0003298,30]
[420719165,1776494565180,-155.0,0.0003298,30]
[420719166,1776494565264,-157.0,0.0003298,30]
[420719167,1776494565347,-217.0,0.0003298,30]
[420719168,1776494565428,-305.0,0.0003298,30]
[420719169,1776494565512,-157.0,0.0003298,30]
[420719170,1776494565597,-159.0,0.0003298,30]
[420719171,1776494565681,-308.0,0.0003298,30]
[420719172,1776494565763,-500.0,0.00033014,60]
[420719173,1776494565847,-500.0,0.00033014,60]
[420719174,1776494565934,-500.0,0.00033014,60]
[420719175,1776494566018,-540.7413848,0.00033014,60]
[420719176,1776494566100,-500.0,0.00033014,60]
[420719177,1776494566184,-500.0,0.00033014,60]
[420719178,1776494566266,-500.0,0.00033014,60]
[420719179,1776494566348,-500.0,0.00033014,60]
[420719180,1776494566428,-500.0,0.00033014,60]
[420719181,1776494566512,-500.0,0.00033014,60]
[420719182,1776494566597,-500.0,0.00033014,60]
[420719183,1776494566680,-500.0,0.00033014,60]
[420719184,1776494566765,-500.0,0.00033014,60]
[420719185,1776494566851,-500.0,0.00033014,60]
[420719186,1776494566937,-500.0,0.00033014,60]
[420719187,1776494567022,-500.0,0.00033014,60]
[420719188,1776494567103,-823.8472141,0.00033014,60]
[420719189,1776494567188,-500.0,0.00033014,60]
[420719190,1776494567270,-500.0,0.00033014,60]
[420719191,1776494567350,-500.0,0.00033014,60]